[Event "47th GER-ch Blitz 2020"]
[Site "Magdeburg"]
[Date "2020.08.15"]
[Round "22.10"]
[White "Ehmann, Thilo"]
[Black "Svane, Frederik"]
[Result "0-1"]
[ECO "B27"]
[WhiteElo "2329"]
[BlackElo "2421"]
[Annotator "ChessBase"]
[PlyCount "64"]
[EventDate "2020.07.28"]
[EventType "tourn"]
[EventCountry "GER"]
[SourceTitle "playchess.com"]
[Source "ChessBase"]
[SourceQuality "1"]
[TimeControl "180+2"]

1. e4 {[%emt 0:00:00]} c5 {[%emt 0:00:00]} 2. Nf3 g6 3. h4 {[%emt 0:00:22]} h5 {[%emt 0:00:01]} 4. Nc3 {[%emt 0:00:06]} Bg7 {[%emt 0:00:01]} 5. Ng5 {[%emt 0:00:16]} Nc6 {[%emt 0:00:03]} 6. d3 {[%emt 0:00:09]} d6 {[%emt 0:00:13]} 7. Be2 {[%emt 0:00:13]} Nf6 {[%emt 0:00:01]} 8. Bf4 {[%emt 0:00:08]} Nd4 {[%emt 0:00:11]} 9. Qd2 {[%emt 0:00:11]} Ne6 {[%emt 0:00:26]} 10. Nxe6 {[%emt 0:00:28]} Bxe6 {[%emt 0:00:01]} 11. f3 {[%emt 0:00:01]} Rb8 {[%emt 0:00:09]} 12. d4 {[%emt 0:00:26]} cxd4 {[%emt 0:00:05]} 13. Qxd4 {[%emt 0:00:00]} a6 {[%emt 0:00:15]} 14. O-O-O {[%emt 0:00:11]} Qa5 {[%emt 0:00:12]} 15. g4 {[%emt 0:00:26]} hxg4 {[%emt 0:00:09]} 16. fxg4 {[%emt 0:00:01]} Nh5 {[%emt 0:00:01]} 17. Qe3 {[%emt 0:00:10]} Nxf4 {[%emt 0:00:02]} 18. Qxf4 {[%emt 0:00:01]} Bxc3 {[%emt 0:00:05]} 19. bxc3 {[%emt 0:00:01]} Qxc3 {[%emt 0:00:04]} 20. Rhf1 {[%emt 0:00:07]} Rxh4 {[%emt 0:00:06]} 21. Bd3 {[%emt 0:00:03]} Rc8 {[%emt 0:00:05]} 22. Qg3 {[%emt 0:00:05]} Rh8 {[%emt 0:00:08]} 23. g5 {[%emt 0:00:07]} Bxa2 {[%emt 0:00:07]} 24. Rf3 {[%emt 0:00:03]} Bc4 {[%emt 0:00:07]} 25. Bxc4 {[%emt 0:00:04]} Qxc4 {[%emt 0:00:02]} 26. Qf2 {[%emt 0:00:02]} Qxe4 {[%emt 0:00:08]} 27. Rdd3 {[%emt 0:00:01]} Rh1+ {[%emt 0:00:03]} 28. Kb2 {[%emt 0:00:00]} Qe5+ {[%emt 0:00:03]} 29. c3 {[%emt 0:00:05]} Qb5+ {[%emt 0:00:01]} 30. Kc2 {[%emt 0:00:03]} Qb1+ {[%emt 0:00:02]} 31. Kd2 {[%emt 0:00:00]} Rd1+ {[%emt 0:00:10]} 32. Ke2 {[%emt 0:00:04]} Qc2+ {[%emt 0:00:02]} 0-1

[Event "47th GER-ch Blitz 2020"]
[Site "Magdeburg"]
[Date "2020.08.15"]
[Round "22.11"]
[White "Baskin, Robert"]
[Black "Reichmann, Hendrik"]
[Result "1-0"]
[ECO "B06"]
[WhiteElo "2390"]
[BlackElo "2348"]
[Annotator "ChessBase"]
[PlyCount "51"]
[EventDate "2020.07.28"]
[EventType "tourn"]
[EventCountry "GER"]
[SourceTitle "playchess.com"]
[Source "ChessBase"]
[SourceQuality "1"]
[TimeControl "180+2"]

1. e4 {[%emt 0:00:00]} g6 {[%emt 0:00:00]} 2. d4 {[%emt 0:00:00]} Bg7 {[%emt 0:00:00]} 3. Nc3 {[%emt 0:00:02]} d6 {[%emt 0:00:01]} 4. f4 {[%emt 0:00:01]} a6 {[%emt 0:00:01]} 5. Nf3 {[%emt 0:00:01]} Nd7 {[%emt 0:00:01]} 6. Bd3 {[%emt 0:00:03]} c5 {[%emt 0:00:01]} 7. dxc5 {[%emt 0:00:34]} Nxc5 {[%emt 0:00:02]} 8. Be3 {[%emt 0:00:02]} Nf6 {[%emt 0:00:44]} 9. Bxc5 {[%emt 0:00:08]} dxc5 {[%emt 0:00:01]} 10. e5 {[%emt 0:00:02]} Ng4 {[%emt 0:00:04]} 11. Qe2 {[%emt 0:00:05]} O-O {[%emt 0:00:47]} 12. O-O-O {[%emt 0:00:03]} Qa5 {[%emt 0:00:26]} 13. h3 {[%emt 0:00:04]} Nh6 {[%emt 0:00:01]} 14. g4 {[%emt 0:00:02]} Qb4 {[%emt 0:00:03]} 15. Nd5 {[%emt 0:00:10]} Qa4 {[%emt 0:00:08]} 16. Kb1 {[%emt 0:00:15]} Be6 {[%emt 0:00:02]} 17. b3 {[%emt 0:00:01]} Qa5 {[%emt 0:00:03]} 18. Nxe7+ {[%emt 0:00:08]} Kh8 {[%emt 0:00:01]} 19. f5 {[%emt 0:00:02]} c4 {[%emt 0:00:08]} 20. Bxc4 {[%emt 0:00:17]} Bxc4 {[%emt 0:00:01]} 21. Qxc4 {[%emt 0:00:01]} gxf5 {[%emt 0:00:39]} 22. gxf5 {[%emt 0:00:06]} Rfe8 {[%emt 0:00:16]} 23. f6 {[%emt 0:00:10]} Rxe7 {[%emt 0:00:08]} 24. fxe7 {[%emt 0:00:04]} Re8 {[%emt 0:00:01]} 25. Rd7 {[%emt 0:00:10]} Nf5 {[%emt 0:00:05]} 26. Qxf7 {[%emt 0:00:02]} 1-0

[Event "47th GER-ch Blitz 2020"]
[Site "Magdeburg"]
[Date "2020.08.15"]
[Round "23.3"]
[White "Koch, Thomas"]
[Black "Zelbel, Patrick"]
[Result "1/2-1/2"]
[ECO "A63"]
[WhiteElo "2461"]
[BlackElo "2448"]
[Annotator "ChessBase"]
[PlyCount "21"]
[EventDate "2020.07.28"]
[EventType "tourn"]
[EventCountry "GER"]
[SourceTitle "playchess.com"]
[Source "ChessBase"]
[SourceQuality "1"]
[TimeControl "180+2"]

1. d4 {[%emt 0:00:00]} Nf6 {[%emt 0:00:00]} 2. c4 {[%emt 0:00:01]} e6 {[%emt 0:00:00]} 3. Nf3 {[%emt 0:00:01]} c5 {[%emt 0:00:00]} 4. d5 {[%emt 0:00:04]} exd5 {[%emt 0:00:00]} 5. cxd5 {[%emt 0:00:01]} d6 {[%emt 0:00:01]} 6. g3 {[%emt 0:00:02]} g6 {[%emt 0:00:01]} 7. Bg2 {[%emt 0:00:01]} Bg7 {[%emt 0:00:01]} 8. O-O {[%emt 0:00:03]} O-O {[%emt 0:00:01]} 9. Nc3 {[%emt 0:00:01]} Nbd7 {[%emt 0:00:02]} 10. Nd2 {[%emt 0:00:05]} Nh5 {[%emt 0:00:01]} 11. Nc4 {[%emt 0:00:06]} 1/2-1/2

[Event "47th GER-ch Blitz 2020"]
[Site "Magdeburg"]
[Date "2020.08.15"]
[Round "23.11"]
[White "Berger, Steve"]
[Black "Holtel, Jasper"]
[Result "1-0"]
[ECO "B02"]
[WhiteElo "2408"]
[BlackElo "2305"]
[Annotator "RC"]
[PlyCount "87"]
[EventDate "2020.07.28"]
[EventType "tourn"]
[EventCountry "GER"]
[SourceTitle "playchess.com"]
[Source "ChessBase"]
[SourceQuality "1"]
[TimeControl "180+2"]

1. e4 {[%emt 0:00:00]} Nf6 {[%emt 0:00:00]} 2. e5 {[%emt 0:00:00]} Nd5 {[%emt 0:00:00]} 3. Nc3 {[%emt 0:00:01]} Nxc3 {[%emt 0:00:03]} 4. dxc3 {[%emt 0:00:00]} d6 {[%emt 0:00:01]} 5. Bf4 {[%emt 0:00:02]} g6 {[%emt 0:00:02]} 6. Qd2 {[%emt 0:00:04]} Bg7 {[%emt 0:00:01]} 7. O-O-O {[%emt 0:00:02]} O-O {[%emt 0:00:05]} 8. Nf3 {[%emt 0:00:07]} Nc6 {[%emt 0:00:03]} 9. Bh6 {[%emt 0:00:11]} dxe5 {[%emt 0:00:30]} 10. Qe3 {[%emt 0:00:01]} Qe8 {[%emt 0:00:17]} 11. Bxg7 {[%emt 0:00:02]} Kxg7 {[%emt 0:00:02]} 12. Nxe5 {[%emt 0:00:04]} Nxe5 {[%emt 0:00:16]} 13. Qxe5+ {[%emt 0:00:01]} Kg8 {[%emt 0:00:02]} 14. Qxc7 {[%emt 0:00:06]} Qa4 {[%emt 0:00:25]} 15. Bc4 {[%emt 0:00:24]} Bf5 {[%emt 0:00:22]} 16. Bb3 {[%emt 0:00:01]} Qh4 {[%emt 0:00:07]} 17. g3 {[%emt 0:00:09]} Qf6 {[%emt 0:00:30]} 18. Rhe1 {[%emt 0:00:03]} e6 {[%emt 0:00:13]} 19. Qf4 {[%emt 0:00:08]} g5 {[%emt 0:00:16]} 20. Qf3 {[%emt 0:00:11]} Qh6 {[%emt 0:00:07]} 21. g4 {[%emt 0:00:04]} Bg6 {[%emt 0:00:02]} 22. h3 {[%emt 0:00:06]} a5 {[%emt 0:00:05]} 23. a4 {[%emt 0:00:01]} b5 {[%emt 0:00:11]} 24. Re5 {[%emt 0:00:13]} bxa4 {[%emt 0:00:03]} 25. Bxa4 {[%emt 0:00:01]} Rab8 {[%emt 0:00:02]} 26. Rxa5 {[%emt 0:00:12]} Rfc8 {[%emt 0:00:01]} 27. Ra7 {[%emt 0:00:15]} Qf8 {[%emt 0:00:02]} 28. Bb3 {[%emt 0:00:05]} Qc5 {[%emt 0:00:02]} 29. Rdd7 {[%emt 0:00:10]} Rf8 {[%emt 0:00:03]} 30. Qf6 {[%emt 0:00:27]} Qb5 {[%emt 0:00:02]} 31. c4 {[%emt 0:00:19]} Qb4 {[%emt 0:00:02]} 32. Qc3 {[%emt 0:00:08]} Qb6 {[%emt 0:00:02]} 33. c5 {[%emt 0:00:01]} Qc6 {[%emt 0:00:00]} 34. f3 {[%emt 0:00:07]} Qc8 {[%emt 0:00:04]} 35. Bxe6 {[%emt 0:00:02]} Qc6 {[%emt 0:00:03]} 36. Bd5 {[%emt 0:00:02]} Qb5 {[%emt 0:00:01]} 37. Bc4 {[%emt 0:00:02]} Qc6 {[%emt 0:00:01]} 38. b4 {[%emt 0:00:07]} Rbe8 {[%emt 0:00:02]} 39. b5 {[%emt 0:00:03]} Qc8 {[%emt 0:00:02]} 40. c6 {[%emt 0:00:01]} Qb8 {[%emt 0:00:01]} 41. Qf6 {[%emt 0:00:03]} Qh2 {[%emt 0:00:02]} 42. Rxf7 {[%emt 0:00:04]} Qg1+ {[%emt 0:00:02]} 43. Kb2 {[%emt 0:00:01]} Bxf7 {[%emt 0:00:03]} 44. Bxf7+ {[%emt 0:00:01]} 1-0

[Event "47th GER-ch Blitz 2020"]
[Site "Magdeburg"]
[Date "2020.08.15"]
[Round "23.12"]
[White "Schoewel, Matthias"]
[Black "Voege, Tobias"]
[Result "0-1"]
[ECO "B30"]
[WhiteElo "2218"]
[BlackElo "2326"]
[Annotator "ChessBase"]
[PlyCount "78"]
[EventDate "2020.07.28"]
[EventType "tourn"]
[EventCountry "GER"]
[SourceTitle "playchess.com"]
[Source "ChessBase"]
[SourceQuality "1"]
[TimeControl "180+2"]

1. e4 {[%emt 0:00:00]} c5 {[%emt 0:00:00]} 2. Nf3 {[%emt 0:00:00]} Nc6 {[%emt 0:00:00]} 3. Nc3 {[%emt 0:00:01]} g6 {[%emt 0:00:00]} 4. d3 {[%emt 0:00:01]} Bg7 {[%emt 0:00:01]} 5. Be3 {[%emt 0:00:01]} d6 {[%emt 0:00:01]} 6. Qd2 {[%emt 0:00:01]} e5 {[%emt 0:00:00]} 7. Be2 {[%emt 0:00:02]} Nd4 {[%emt 0:00:06]} 8. Bd1 {[%emt 0:00:01]} a6 {[%emt 0:00:12]} 9. a4 {[%emt 0:00:03]} Rb8 {[%emt 0:00:05]} 10. O-O {[%emt 0:00:02]} b5 {[%emt 0:00:02]} 11. axb5 {[%emt 0:00:03]} axb5 {[%emt 0:00:01]} 12. h3 {[%emt 0:00:14]} Ne7 {[%emt 0:00:06]} 13. Bh6 {[%emt 0:00:05]} O-O {[%emt 0:00:03]} 14. Nh2 {[%emt 0:00:09]} f5 {[%emt 0:00:24]} 15. Bxg7 {[%emt 0:00:10]} Kxg7 {[%emt 0:00:01]} 16. exf5 {[%emt 0:00:04]} gxf5 {[%emt 0:00:14]} 17. Ne2 {[%emt 0:00:04]} Bb7 {[%emt 0:00:41]} 18. c3 {[%emt 0:00:09]} Nxe2+ {[%emt 0:00:08]} 19. Bxe2 {[%emt 0:00:01]} Kh8 {[%emt 0:00:12]} 20. Kh1 {[%emt 0:00:02]} Ng6 {[%emt 0:00:03]} 21. Bf3 {[%emt 0:00:25]} e4 {[%emt 0:00:01]} 22. dxe4 {[%emt 0:00:01]} fxe4 {[%emt 0:00:01]} 23. Bg4 {[%emt 0:00:13]} Nf4 {[%emt 0:00:08]} 24. Qe3 {[%emt 0:00:15]} Qf6 {[%emt 0:00:19]} 25. Ra7 {[%emt 0:00:36]} Ba8 {[%emt 0:00:36]} 26. b4 {[%emt 0:00:23]} h5 {[%emt 0:00:14]} 27. Bd1 {[%emt 0:00:10]} cxb4 {[%emt 0:00:01]} 28. cxb4 d5 29. Rxa8 {[%emt 0:00:22]} Rxa8 {[%emt 0:00:02]} 30. Bb3 {[%emt 0:00:06]} Rae8 {[%emt 0:00:03]} 31. Rd1 {[%emt 0:00:03]} Nd3 {[%emt 0:00:03]} 32. f3 {[%emt 0:00:05]} d4 {[%emt 0:00:03]} 33. Qd2 {[%emt 0:00:03]} Qf4 {[%emt 0:00:05]} 34. Qxf4 {[%emt 0:00:05]} Rxf4 {[%emt 0:00:01]} 35. fxe4 {[%emt 0:00:01]} Nf2+ {[%emt 0:00:01]} 36. Kg1 {[%emt 0:00:01]} Nxd1 {[%emt 0:00:01]} 37. Bxd1 {[%emt 0:00:01]} Rfxe4 {[%emt 0:00:00]} 38. Bf3 {[%emt 0:00:03]} Re1+ {[%emt 0:00:02]} 39. Kf2 {[%emt 0:00:01]} d3 {[%emt 0:00:01]} 0-1

[Event "47th GER-ch Blitz 2020"]
[Site "Magdeburg"]
[Date "2020.08.15"]
[Round "24.3"]
[White "Weller, Manuel"]
[Black "Krause, Benedict"]
[Result "1/2-1/2"]
[ECO "A37"]
[WhiteElo "2237"]
[BlackElo "2425"]
[Annotator "ChessBase"]
[PlyCount "26"]
[EventDate "2020.07.28"]
[EventType "tourn"]
[EventCountry "GER"]
[SourceTitle "playchess.com"]
[Source "ChessBase"]
[SourceQuality "1"]
[TimeControl "180+2"]

1. c4 {[%emt 0:00:00]} g6 {[%emt 0:00:00]} 2. g3 {[%emt 0:00:03]} Bg7 {[%emt 0:00:00]} 3. Bg2 {[%emt 0:00:00]} c5 {[%emt 0:00:01]} 4. Nf3 {[%emt 0:00:02]} Nc6 {[%emt 0:00:01]} 5. Nc3 {[%emt 0:00:01]} e6 {[%emt 0:00:08]} 6. d4 {[%emt 0:00:01]} cxd4 {[%emt 0:00:02]} 7. Nb5 {[%emt 0:00:05]} d5 {[%emt 0:00:02]} 8. cxd5 {[%emt 0:00:03]} exd5 {[%emt 0:00:01]} 9. O-O {[%emt 0:00:11]} Nge7 {[%emt 0:00:03]} 10. Bf4 {[%emt 0:00:17]} O-O {[%emt 0:00:02]} 11. Nc7 {[%emt 0:00:10]} Rb8 {[%emt 0:00:01]} 12. Nb5 {[%emt 0:00:01]} Ra8 {[%emt 0:00:00]} 13. Nc7 {[%emt 0:00:00]} Rb8 {[%emt 0:00:01]} 1/2-1/2

[Event "47th GER-ch Blitz 2020"]
[Site "Magdeburg"]
[Date "2020.08.15"]
[Round "24.5"]
[White "Holtel, Jasper"]
[Black "Schoewel, Matthias"]
[Result "1-0"]
[ECO "C50"]
[WhiteElo "2305"]
[BlackElo "2218"]
[Annotator "ChessBase"]
[PlyCount "69"]
[EventDate "2020.07.28"]
[EventType "tourn"]
[EventCountry "GER"]
[SourceTitle "playchess.com"]
[Source "ChessBase"]
[SourceQuality "1"]
[TimeControl "180+2"]

1. e4 {[%emt 0:00:00]} e5 {[%emt 0:00:00]} 2. Nf3 {[%emt 0:00:01]} Nc6 {[%emt 0:00:00]} 3. Bc4 {[%emt 0:00:01]} Be7 {[%emt 0:00:00]} 4. O-O {[%emt 0:00:02]} Nf6 {[%emt 0:00:01]} 5. Re1 {[%emt 0:00:03]} O-O {[%emt 0:00:02]} 6. d3 {[%emt 0:00:01]} d6 {[%emt 0:00:02]} 7. a4 {[%emt 0:00:01]} Bg4 {[%emt 0:00:01]} 8. h3 {[%emt 0:00:12]} Be6 {[%emt 0:00:07]} 9. Nbd2 {[%emt 0:00:02]} Qd7 {[%emt 0:00:05]} 10. c3 {[%emt 0:00:03]} Bxc4 {[%emt 0:00:06]} 11. Nxc4 {[%emt 0:00:03]} h6 {[%emt 0:00:02]} 12. a5 {[%emt 0:00:06]} a6 {[%emt 0:00:10]} 13. Qb3 {[%emt 0:00:11]} Rab8 {[%emt 0:00:01]} 14. Ne3 {[%emt 0:00:04]} Kh7 {[%emt 0:00:05]} 15. Nf5 {[%emt 0:00:09]} Bd8 {[%emt 0:00:31]} 16. Qc2 {[%emt 0:00:05]} Ne7 {[%emt 0:00:03]} 17. Nxe7 {[%emt 0:00:08]} Bxe7 {[%emt 0:00:01]} 18. d4 {[%emt 0:00:01]} exd4 {[%emt 0:00:08]} 19. e5+ {[%emt 0:00:06]} g6 {[%emt 0:00:16]} 20. exf6 {[%emt 0:00:02]} Bxf6 {[%emt 0:00:01]} 21. Nxd4 {[%emt 0:00:04]} c5 {[%emt 0:00:05]} 22. Nf3 {[%emt 0:00:05]} d5 {[%emt 0:00:04]} 23. Bf4 {[%emt 0:00:02]} Rbd8 {[%emt 0:00:03]} 24. Rad1 {[%emt 0:00:08]} Qb5 {[%emt 0:00:02]} 25. Be5 {[%emt 0:00:05]} Bxe5 {[%emt 0:00:17]} 26. Rxe5 {[%emt 0:00:02]} Qc6 {[%emt 0:00:03]} 27. Qd3 {[%emt 0:00:15]} d4 {[%emt 0:00:11]} 28. cxd4 {[%emt 0:00:02]} cxd4 {[%emt 0:00:15]} 29. Re4 {[%emt 0:00:10]} Rd5 {[%emt 0:00:06]} 30. Rxd4 {[%emt 0:00:05]} Rxa5 {[%emt 0:00:02]} 31. Rd6 {[%emt 0:00:11]} Qc7 {[%emt 0:00:06]} 32. Rd7 {[%emt 0:00:05]} Qb6 {[%emt 0:00:13]} 33. Qb1 {[%emt 0:00:30]} Rb5 {[%emt 0:00:05]} 34. R1d6 {[%emt 0:00:03]} Qc5 {[%emt 0:00:07]} 35. Qxg6+ {[%emt 0:00:05]} 1-0

[Event "47th GER-ch Blitz 2020"]
[Site "Magdeburg"]
[Date "2020.08.15"]
[Round "24.8"]
[White "Braun, Georg"]
[Black "Hess, Max"]
[Result "1-0"]
[ECO "B47"]
[WhiteElo "2360"]
[BlackElo "2378"]
[Annotator "ChessBase"]
[PlyCount "123"]
[EventDate "2020.07.28"]
[EventType "tourn"]
[EventCountry "GER"]
[SourceTitle "playchess.com"]
[Source "ChessBase"]
[SourceQuality "1"]
[TimeControl "180+2"]

1. e4 {[%emt 0:00:00]} c5 {[%emt 0:00:00]} 2. Nf3 {[%emt 0:00:01]} e6 {[%emt 0:00:00]} 3. d4 {[%emt 0:00:01]} cxd4 {[%emt 0:00:00]} 4. Nxd4 {[%emt 0:00:02]} Nc6 {[%emt 0:00:01]} 5. Nc3 {[%emt 0:00:01]} Qc7 {[%emt 0:00:01]} 6. g3 {[%emt 0:00:01]} a6 {[%emt 0:00:02]} 7. Bg2 {[%emt 0:00:01]} Nf6 {[%emt 0:00:01]} 8. O-O {[%emt 0:00:02]} Nxd4 {[%emt 0:00:01]} 9. Qxd4 {[%emt 0:00:01]} Bc5 {[%emt 0:00:02]} 10. Bf4 {[%emt 0:00:01]} d6 {[%emt 0:00:01]} 11. Qd2 {[%emt 0:00:01]} h6 {[%emt 0:00:02]} 12. Rad1 {[%emt 0:00:02]} e5 {[%emt 0:00:01]} 13. Be3 {[%emt 0:00:01]} Be6 {[%emt 0:00:02]} 14. Bxc5 {[%emt 0:00:04]} dxc5 {[%emt 0:00:01]} 15. Nd5 {[%emt 0:00:03]} Bxd5 {[%emt 0:00:01]} 16. exd5 {[%emt 0:00:01]} Qd6 {[%emt 0:00:01]} 17. b3 {[%emt 0:00:03]} O-O {[%emt 0:00:06]} 18. Rfe1 {[%emt 0:00:01]} b5 {[%emt 0:00:07]} 19. c4 {[%emt 0:00:06]} Rab8 {[%emt 0:00:20]} 20. Qc3 {[%emt 0:00:03]} Rfe8 {[%emt 0:00:08]} 21. Re2 {[%emt 0:00:01]} b4 {[%emt 0:00:19]} 22. Qb2 {[%emt 0:00:07]} Re7 {[%emt 0:00:12]} 23. Rde1 {[%emt 0:00:02]} Rbe8 {[%emt 0:00:01]} 24. a4 {[%emt 0:00:02]} a5 {[%emt 0:00:05]} 25. h3 {[%emt 0:00:01]} e4 {[%emt 0:00:03]} 26. Qc2 {[%emt 0:00:09]} Qe5 {[%emt 0:00:17]} 27. Kh2 {[%emt 0:00:18]} Qd4 {[%emt 0:00:06]} 28. Re3 {[%emt 0:00:11]} h5 {[%emt 0:00:02]} 29. f3 {[%emt 0:00:13]} h4 {[%emt 0:00:04]} 30. g4 {[%emt 0:00:37]} Qe5+ {[%emt 0:00:41]} 31. Kh1 {[%emt 0:00:16]} Qf4 {[%emt 0:00:02]} 32. fxe4 {[%emt 0:00:04]} Nd7 {[%emt 0:00:02]} 33. Rf3 {[%emt 0:00:09]} Qh6 {[%emt 0:00:10]} 34. Rf5 {[%emt 0:00:13]} g6 {[%emt 0:00:04]} 35. Rff1 {[%emt 0:00:07]} Ne5 {[%emt 0:00:01]} 36. Qc1 {[%emt 0:00:17]} Qg7 {[%emt 0:00:07]} 37. Qe3 {[%emt 0:00:02]} Rc8 {[%emt 0:00:03]} 38. Rd1 {[%emt 0:00:04]} Rd7 {[%emt 0:00:11]} 39. Qf4 {[%emt 0:00:04]} Rd6 {[%emt 0:00:03]} 40. Rf2 {[%emt 0:00:02]} Rb8 {[%emt 0:00:04]} 41. Kg1 {[%emt 0:00:01]} Rbb6 {[%emt 0:00:01]} 42. Qg5 {[%emt 0:00:06]} Ra6 {[%emt 0:00:17]} 43. Qxh4 {[%emt 0:00:05]} Rf6 {[%emt 0:00:02]} 44. Rxf6 {[%emt 0:00:07]} Rxf6 {[%emt 0:00:01]} 45. d6 {[%emt 0:00:05]} g5 {[%emt 0:00:09]} 46. Qg3 {[%emt 0:00:07]} Nd7 {[%emt 0:00:05]} 47. Qe3 {[%emt 0:00:05]} Rf4 {[%emt 0:00:12]} 48. Rd5 {[%emt 0:00:03]} Qa1+ {[%emt 0:00:02]} 49. Kh2 {[%emt 0:00:01]} f6 {[%emt 0:00:03]} 50. Rd2 {[%emt 0:00:05]} Qb1 {[%emt 0:00:01]} 51. Kg3 {[%emt 0:00:03]} Kf7 {[%emt 0:00:02]} 52. h4 {[%emt 0:00:01]} Ke6 {[%emt 0:00:01]} 53. h5 {[%emt 0:00:03]} Qc1 {[%emt 0:00:08]} 54. Rd3 {[%emt 0:00:07]} Qc2 {[%emt 0:00:03]} 55. Qd2 {[%emt 0:00:02]} Qb1 {[%emt 0:00:05]} 56. Qd1 {[%emt 0:00:02]} Qb2 {[%emt 0:00:01]} 57. Qd2 {[%emt 0:00:02]} Qb1 {[%emt 0:00:01]} 58. Qd1 {[%emt 0:00:04]} Qb2 {[%emt 0:00:01]} 59. Rf3 {[%emt 0:00:02]} Qe5 {[%emt 0:00:04]} 60. Qd5+ {[%emt 0:00:01]} Qxd5 {[%emt 0:00:03]} 61. exd5+ {[%emt 0:00:02]} Kxd6 {[%emt 0:00:01]} 62. Rxf4 {[%emt 0:00:01]} 1-0

[Event "47th GER-ch Blitz 2020"]
[Site "Magdeburg"]
[Date "2020.08.15"]
[Round "24.9"]
[White "Ehmann, Thilo"]
[Black "Siebarth, Raiko"]
[Result "1-0"]
[ECO "B90"]
[WhiteElo "2329"]
[BlackElo "2333"]
[Annotator "ChessBase"]
[PlyCount "197"]
[EventDate "2020.07.28"]
[EventType "tourn"]
[EventCountry "GER"]
[SourceTitle "playchess.com"]
[Source "ChessBase"]
[SourceQuality "1"]
[TimeControl "180+2"]

1. e4 {[%emt 0:00:00]} c5 {[%emt 0:00:00]} 2. Nf3 {[%emt 0:00:00]} d6 {[%emt 0:00:00]} 3. d4 {[%emt 0:00:00]} cxd4 4. Nxd4 Nf6 {[%emt 0:00:00]} 5. Nc3 a6 6. f3 {[%emt 0:00:03]} e5 {[%emt 0:00:01]} 7. Nb3 {[%emt 0:00:01]} Be6 {[%emt 0:00:01]} 8. Be3 {[%emt 0:00:01]} Be7 {[%emt 0:00:00]} 9. Qd2 {[%emt 0:00:02]} O-O {[%emt 0:00:01]} 10. O-O-O {[%emt 0:00:03]} Qc7 {[%emt 0:00:00]} 11. g4 {[%emt 0:00:03]} Nbd7 {[%emt 0:00:01]} 12. Kb1 {[%emt 0:00:07]} Rfc8 {[%emt 0:00:01]} 13. g5 {[%emt 0:00:12]} Nh5 {[%emt 0:00:01]} 14. Ne2 {[%emt 0:00:03]} a5 {[%emt 0:00:04]} 15. a4 {[%emt 0:00:13]} Nb6 {[%emt 0:00:10]} 16. Nc3 {[%emt 0:00:04]} Nc4 {[%emt 0:00:12]} 17. Bxc4 {[%emt 0:00:02]} Qxc4 {[%emt 0:00:01]} 18. Qd3 {[%emt 0:00:19]} Qb4 {[%emt 0:00:22]} 19. Qb5 {[%emt 0:00:17]} Rc4 {[%emt 0:00:12]} 20. Nd5 {[%emt 0:00:20]} Bxd5 {[%emt 0:00:03]} 21. Rxd5 {[%emt 0:00:01]} Qxb5 {[%emt 0:00:55]} 22. axb5 {[%emt 0:00:11]} a4 {[%emt 0:00:02]} 23. Nd2 {[%emt 0:00:01]} Rc7 {[%emt 0:00:02]} 24. Rd1 {[%emt 0:00:25]} a3 {[%emt 0:00:03]} 25. b3 {[%emt 0:00:07]} a2+ {[%emt 0:00:01]} 26. Kb2 {[%emt 0:00:01]} a1=Q+ {[%emt 0:00:04]} 27. Rxa1 {[%emt 0:00:01]} Rxa1 {[%emt 0:00:01]} 28. Kxa1 {[%emt 0:00:01]} Rxc2 {[%emt 0:00:00]} 29. Nc4 {[%emt 0:00:04]} Re2 {[%emt 0:00:28]} 30. Bc1 {[%emt 0:00:13]} Re1 {[%emt 0:00:05]} 31. Kb2 {[%emt 0:00:01]} Re2+ {[%emt 0:00:00]} 32. Kc3 {[%emt 0:00:02]} g6 {[%emt 0:00:14]} 33. Na5 {[%emt 0:00:06]} b6 {[%emt 0:00:05]} 34. Nc4 {[%emt 0:00:01]} Rxh2 {[%emt 0:00:04]} 35. Nxb6 {[%emt 0:00:02]} Ng3 {[%emt 0:00:04]} 36. Be3 {[%emt 0:00:14]} Nf1 {[%emt 0:00:01]} 37. Bc1 {[%emt 0:00:10]} Ng3 {[%emt 0:00:00]} 38. Kb4 {[%emt 0:00:02]} Rc2 {[%emt 0:00:06]} 39. Be3 {[%emt 0:00:04]} Nf1 {[%emt 0:00:01]} 40. Nc4 {[%emt 0:00:03]} Rxc4+ {[%emt 0:00:01]} 41. bxc4 {[%emt 0:00:02]} Nxe3 {[%emt 0:00:01]} 42. Rd3 {[%emt 0:00:02]} Nc2+ {[%emt 0:00:02]} 43. Kc3 {[%emt 0:00:02]} Nd4 {[%emt 0:00:01]} 44. Rd1 {[%emt 0:00:03]} Bxg5 {[%emt 0:00:04]} 45. b6 {[%emt 0:00:04]} Bd8 {[%emt 0:00:01]} 46. b7 {[%emt 0:00:00]} Bc7 {[%emt 0:00:01]} 47. Ra1 {[%emt 0:00:03]} Nc6 {[%emt 0:00:01]} 48. Ra8+ {[%emt 0:00:02]} Nb8 {[%emt 0:00:01]} 49. c5 {[%emt 0:00:08]} dxc5 {[%emt 0:00:01]} 50. Kc4 {[%emt 0:00:09]} h5 {[%emt 0:00:00]} 51. Ra1 {[%emt 0:00:01]} g5 {[%emt 0:00:02]} 52. Kxc5 {[%emt 0:00:02]} h4 {[%emt 0:00:01]} 53. Kd5 {[%emt 0:00:02]} Kg7 {[%emt 0:00:06]} 54. Rc1 {[%emt 0:00:01]} Ba5 {[%emt 0:00:05]} 55. Rc8 {[%emt 0:00:07]} Nd7 56. b8=Q {[%emt 0:00:03]} Nxb8 {[%emt 0:00:02]} 57. Rxb8 {[%emt 0:00:01]} h3 {[%emt 0:00:02]} 58. Rb1 {[%emt 0:00:03]} Bd2 {[%emt 0:00:11]} 59. Rh1 {[%emt 0:00:02]} Bf4 {[%emt 0:00:01]} 60. Rxh3 Kg6 {[%emt 0:00:01]} 61. Rh1 {[%emt 0:00:04]} Kg7 {[%emt 0:00:01]} 62. Kc4 {[%emt 0:00:04]} Kg6 {[%emt 0:00:01]} 63. Kd3 {[%emt 0:00:00]} Kg7 {[%emt 0:00:00]} 64. Ke2 Kg6 65. Kf2 {[%emt 0:00:02]} Kg7 66. Kg2 Kg6 {[%emt 0:00:03]} 67. Kh3 f5 68. Rd1 {[%emt 0:00:04]} g4+ {[%emt 0:00:01]} 69. fxg4 {[%emt 0:00:01]} fxe4 {[%emt 0:00:00]} 70. Re1 {[%emt 0:00:04]} e3 {[%emt 0:00:01]} 71. Kg2 {[%emt 0:00:01]} e4 {[%emt 0:00:05]} 72. Rg1 {[%emt 0:00:07]} Kg5 {[%emt 0:00:01]} 73. Kf1 {[%emt 0:00:01]} Bh2 {[%emt 0:00:04]} 74. Rg2 {[%emt 0:00:01]} Bc7 {[%emt 0:00:03]} 75. Ke2 {[%emt 0:00:00]} Bb6 {[%emt 0:00:01]} 76. Rg1 {[%emt 0:00:01]} Bd4 {[%emt 0:00:02]} 77. Rd1 {[%emt 0:00:05]} Ba7 {[%emt 0:00:01]} 78. Rd7 {[%emt 0:00:02]} Bb6 {[%emt 0:00:02]} 79. Rg7+ {[%emt 0:00:01]} Kf6 {[%emt 0:00:01]} 80. Rg8 {[%emt 0:00:01]} Kf7 {[%emt 0:00:01]} 81. Rb8 {[%emt 0:00:02]} Bc5 {[%emt 0:00:01]} 82. Rc8 {[%emt 0:00:01]} Bd4 {[%emt 0:00:01]} 83. Rc4 {[%emt 0:00:01]} Ba7 {[%emt 0:00:01]} 84. Rxe4 Kg6 85. Kf3 {[%emt 0:00:02]} Kg5 {[%emt 0:00:03]} 86. Re5+ {[%emt 0:00:02]} Kf6 {[%emt 0:00:01]} 87. Rf5+ {[%emt 0:00:01]} Kg6 {[%emt 0:00:00]} 88. Ra5 {[%emt 0:00:03]} Bd4 {[%emt 0:00:01]} 89. Ra4 {[%emt 0:00:01]} Bc5 {[%emt 0:00:02]} 90. Ra2 {[%emt 0:00:02]} Bd4 {[%emt 0:00:03]} 91. Kf4 {[%emt 0:00:03]} Bc5 {[%emt 0:00:04]} 92. Ra6+ {[%emt 0:00:02]} Kg7 {[%emt 0:00:01]} 93. Re6 {[%emt 0:00:02]} Kf7 {[%emt 0:00:04]} 94. Kf5 {[%emt 0:00:00]} Bd4 {[%emt 0:00:02]} 95. g5 {[%emt 0:00:05]} Kf8 {[%emt 0:00:00]} 96. Re4 {[%emt 0:00:06]} Bc5 {[%emt 0:00:02]} 97. Kf6 {[%emt 0:00:02]} Bb6 {[%emt 0:00:02]} 98. Kg6 {[%emt 0:00:02]} Bd8 {[%emt 0:00:13]} 99. Rxe3 {[%emt 0:00:03]} 1-0